[Event "Turkish Women-ch Arzum 2022"]
[Site "Ayvalik"]
[Date "2022.03.08"]
[Round "5.19"]
[White "Yurdakul, Didem Nuray"]
[Black "Olmez, Sude"]
[Result "1-0"]
[ECO "C44"]
[WhiteElo "1804"]
[BlackElo "1170"]
[Annotator "NA RC"]
[PlyCount "65"]
[EventDate "2022.03.04"]
[EventType "swiss"]
[EventCountry "TUR"]
[SourceTitle "playchess.com"]
[Source "ChessBase"]
[SourceQuality "1"]
[TimeControl "5400+30"]

{[%evp 8,65,-19,0,9,20,79,72,129,143,119,38,54,47,54,51,253,32767,32767,216,225,236,288,32767,32767,32767,229,32767,32767,32767,146,32767,32767,32767,32767,32767,169,198,197,137,149,153,178,57,117,131,168,127,126,120,322,393,372,235,839,989,1220,918,29996,29997]} 1. e4 {[%emt 0:01:00]} e5 {[%emt 0:01:00]} 2. Nf3 {[%emt 0:00:30]} Nc6 {[%emt 0:00:30]} 3. d4 {[%emt 0:00:30]} exd4 {[%emt 0:00:00]} 4. Bc4 {[%emt 0:00:00]} Bb4+ {[%emt 0:05:00]} 5. c3 {[%emt 0:00:00]} dxc3 {[%emt 0:13:30]} 6. O-O {[%emt 0:00:00]} h6 {[%emt 0:09:30] 6...Nf6 gains popularity.} (6... Nf6 $11) 7. a3 {[%emt 0:01:00]} ({Reject} 7. bxc3 Ba5 $11) 7... Ba5 {[%emt 0:07:30] [#]} (7... Bd6 $142) 8. b4 $1 {[%emt 0:00:30]} ({Of course not} 8. Nxc3 $6 Bxc3 9. bxc3 d6 $11) ({And not} 8. bxc3 Nge7 $17) 8... Bb6 {[%emt 0:00:00] [#]} 9. Nxc3 {[%emt 0:00:30]} (9. Qb3 $1 $18) 9... Nge7 $1 {[%emt 0:01:00]} 10. Bb2 {[%emt 0:05:30] [#]} d6 $146 {[%emt 0:05:30]} ({Predecessor:} 10... O-O 11. Qb3 Nd4 12. Nxd4 Bxd4 13. Rad1 Bxc3 14. Qxc3 {1-0 (14) Bauer,M-Fischer,W (2255) Germany 1998}) 11. Nd5 {[%emt 0:03:30]} Rg8 $2 {[%emt 0:07:30]} (11... Nxd5 $1 $14 12. exd5 Ne5) 12. Nf4 {[%emt 0:05:30]} Kf8 {[%emt 0:12:30]} 13. Qb3 {[%emt 0:02:30]} Qe8 {[%emt 0:00:30]} 14. a4 {[%emt 0:00:30]} a6 {[%emt 0:00:30]} 15. h3 {[%emt 0:01:30]} Rh8 {[%emt 0:04:30]} 16. a5 {[%emt 0:08:30]} Ba7 {[%emt 0:01:30]} 17. e5 {[%emt 0:00:30]} d5 {[%emt 0:06:30]} 18. Nxd5 {[%emt 0:01:30]} Nxd5 {[%emt 0:02:30]} 19. Bxd5 {[%emt 0:00:30]} Be6 {[%emt 0:00:00]} 20. Rad1 {[%emt 0:00:30]} Bxd5 {[%emt 0:03:13]} 21. Rxd5 {[%emt 0:00:30]} Qe6 {[%emt 0:01:36]} 22. Rfd1 {[%emt 0:00:30]} g6 {[%emt 0:03:58]} 23. b5 {[%emt 0:04:30]} (23. R1d3 $18) 23... axb5 {[%emt 0:01:39]} 24. Qxb5 {[%emt 0:01:30]} Kg7 {[%emt 0:00:22] [#]} 25. Bc3 {[%emt 0:00:30]} ({Wrong is} 25. Qxb7 $2 Rhb8 26. Qxc7 Rxb2 $19) (25. Rc1 $1 $16) 25... Rab8 {[%emt 0:01:49]} 26. Nd2 {[%emt 0:02:30]} Rhd8 {[%emt 0:02:10] [#]} 27. Ne4 $1 {[%emt 0:00:30]} Rxd5 {[%emt 0:01:39]} 28. Rxd5 {[%emt 0:00:30]} b6 $2 {[%emt 0:01:40]} (28... Rd8 $16 29. Rxd8 Nxd8) 29. a6 {[%emt 0:01:30]} Rc8 {[%emt 0:02:10]} 30. Qd3 {[%emt 0:04:30]} (30. Rd3 $142) 30... Nb8 $2 {[%emt 0:00:21]} (30... b5 31. Rxb5 (31. Qxb5 Rb8 $16) 31... Rd8) 31. Rd8 {[%emt 0:00:30]} Rxd8 $18 {[%emt 0:01:10]} 32. Qxd8 {[%emt 0:00:00]} Qd7 {[%emt 0:00:29]} 33. e6+ {[%emt 0:00:00]} 1-0

[Event "Turkish Women-ch Arzum 2022"]
[Site "Ayvalik"]
[Date "2022.03.08"]
[Round "5.20"]
[White "Salt, Ilayda"]
[Black "Yazici, Zumral"]
[Result "1-0"]
[ECO "D26"]
[WhiteElo "1594"]
[BlackElo "1229"]
[Annotator "NA RC"]
[PlyCount "61"]
[EventDate "2022.03.04"]
[EventType "swiss"]
[EventCountry "TUR"]
[SourceTitle "playchess.com"]
[Source "ChessBase"]
[SourceQuality "1"]
[TimeControl "5400+30"]

1. d4 {[%emt 0:01:00]} d5 {[%emt 0:01:00]} 2. c4 {[%emt 0:00:30]} e6 {[%emt 0:00:30]} 3. Nf3 {[%emt 0:00:30]} a6 {[%emt 0:00:30]} 4. e3 {[%emt 0:00:00]} Nf6 {[%emt 0:01:30]} 5. Nc3 {[%emt 0:00:00]} dxc4 {[%emt 0:08:30]} 6. Bxc4 {[%emt 0:00:00]} b5 {[%emt 0:01:30]} 7. Bd3 {[%emt 0:01:00]} Bb7 {[%emt 0:02:30]} 8. O-O {[%emt 0:00:30]} Be7 {[%emt 0:07:30]} 9. Qe2 {[%emt 0:00:30]} O-O {[%emt 0:16:30]} 10. e4 {[%emt 0:01:30]} c5 {[%emt 0:09:30]} 11. dxc5 {[%emt 0:00:30]} Bxc5 {[%emt 0:01:30]} 12. Bg5 {[%emt 0:01:30]} Be7 {[%emt 0:14:30]} 13. Rfd1 {[%emt 0:02:30]} Nbd7 {[%emt 0:08:30]} 14. Rac1 {[%emt 0:10:30]} Ng4 {[%emt 0:10:38]} 15. Bxe7 {[%emt 0:00:30]} Qxe7 {[%emt 0:00:03]} 16. Bb1 {[%emt 0:01:30]} Nc5 {[%emt 0:02:05]} 17. h3 {[%emt 0:00:30]} Nf6 {[%emt 0:00:38]} 18. e5 {[%emt 0:04:30]} Nd5 {[%emt 0:04:10]} 19. Nxd5 {[%emt 0:00:30]} exd5 {[%emt 0:02:55]} 20. Nd4 {[%emt 0:04:30]} g6 {[%emt 0:01:17]} 21. Qg4 {[%emt 0:01:30]} Ne4 {[%emt 0:02:34]} 22. f3 {[%emt 0:01:30]} h5 {[%emt 0:02:23]} 23. Qf4 {[%emt 0:00:30]} Ng5 {[%emt 0:00:35]} 24. Qg3 {[%emt 0:01:30]} Ne6 {[%emt 0:00:38]} 25. Nf5 {[%emt 0:01:30]} Qd7 {[%emt 0:00:32]} 26. Nd6 {[%emt 0:00:30]} Bc6 {[%emt 0:00:30]} 27. f4 {[%emt 0:00:30]} Nc7 {[%emt 0:00:28]} 28. f5 {[%emt 0:00:30]} Kh8 {[%emt 0:00:31]} 29. fxg6 {[%emt 0:00:30]} Rg8 {[%emt 0:00:31]} 30. Qg5 {[%emt 0:00:30]} fxg6 {[%emt 0:00:49]} 31. Qh6+ {[%emt 0:00:30]} 1-0

[Event "Turkish Women-ch Arzum 2022"]
[Site "Ayvalik"]
[Date "2022.03.08"]
[Round "5.21"]
[White "Akar, Nilay"]
[Black "Oztatar, Meleknaz"]
[Result "1/2-1/2"]
[ECO "B01"]
[WhiteElo "1516"]
[BlackElo "1063"]
[Annotator "NA RC"]
[PlyCount "39"]
[EventDate "2022.03.04"]
[EventType "swiss"]
[EventCountry "TUR"]
[SourceTitle "playchess.com"]
[Source "ChessBase"]
[SourceQuality "1"]
[TimeControl "5400+30"]

1. e4 {[%emt 0:01:00]} d5 {[%emt 0:01:00]} 2. exd5 {[%emt 0:00:30]} Qxd5 {[%emt 0:00:00]} 3. Nc3 {[%emt 0:00:00]} Qa5 {[%emt 0:00:00]} 4. d4 {[%emt 0:00:00]} Nf6 {[%emt 0:00:30]} 5. Nf3 {[%emt 0:00:30]} Bf5 {[%emt 0:00:00]} 6. Ne5 {[%emt 0:00:30]} c6 {[%emt 0:00:00]} 7. g4 {[%emt 0:00:30]} Be6 {[%emt 0:00:00]} 8. Bd2 {[%emt 0:02:30]} Qd8 {[%emt 0:17:00]} 9. Be3 {[%emt 0:05:30]} Nbd7 {[%emt 0:03:30]} 10. g5 {[%emt 0:09:30]} Nd5 {[%emt 0:02:30]} 11. Qd2 {[%emt 0:08:30]} Nxc3 {[%emt 0:06:30]} 12. Qxc3 {[%emt 0:00:30]} Bd5 {[%emt 0:00:30]} 13. Rg1 {[%emt 0:03:30]} e6 {[%emt 0:07:30]} 14. Bg2 {[%emt 0:08:30]} a5 {[%emt 0:03:30]} 15. a3 {[%emt 0:08:30]} Bd6 {[%emt 0:09:30]} 16. h4 {[%emt 0:12:30]} Bxe5 {[%emt 0:04:30]} 17. dxe5 {[%emt 0:01:30]} b5 {[%emt 0:05:30]} 18. Bxd5 {[%emt 0:01:30]} cxd5 {[%emt 0:00:30]} 19. Qd4 {[%emt 0:10:30]} Qc7 {[%emt 0:04:30]} 20. f4 {[%emt 0:01:30]} 1/2-1/2

[Event "Turkish Women-ch Arzum 2022"]
[Site "Ayvalik"]
[Date "2022.03.08"]
[Round "5.22"]
[White "Mullakutukcu, Ela"]
[Black "Aydogan, Arya"]
[Result "1/2-1/2"]
[ECO "D00"]
[WhiteElo "1154"]
[BlackElo "1328"]
[Annotator "NA"]
[PlyCount "101"]
[EventDate "2022.03.04"]
[EventType "swiss"]
[EventCountry "TUR"]
[SourceTitle "playchess.com"]
[Source "ChessBase"]
[SourceQuality "1"]
[TimeControl "5400+30"]

1. d4 {[%emt 0:01:00]} d5 {[%emt 0:01:00]} 2. Bf4 {[%emt 0:00:00]} Bf5 {[%emt 0:00:30]} 3. e3 {[%emt 0:00:00]} e6 {[%emt 0:00:00]} 4. c4 {[%emt 0:00:30]} dxc4 {[%emt 0:01:00]} 5. Bxc4 {[%emt 0:00:30]} c6 {[%emt 0:00:00]} 6. Qb3 {[%emt 0:01:30]} Qb6 {[%emt 0:01:00]} 7. Nd2 {[%emt 0:01:30]} Nf6 {[%emt 0:04:30]} 8. Ngf3 {[%emt 0:02:30]} Nbd7 {[%emt 0:09:30]} 9. O-O {[%emt 0:02:30]} Qxb3 {[%emt 0:08:30]} 10. Bxb3 {[%emt 0:03:30]} Be7 {[%emt 0:09:30]} 11. Nc4 {[%emt 0:05:30]} O-O-O {[%emt 0:12:30]} 12. Nd6+ {[%emt 0:10:30]} Bxd6 {[%emt 0:01:30]} 13. Bxd6 {[%emt 0:00:30]} Ne4 {[%emt 0:03:30]} 14. Bb4 {[%emt 0:01:30]} Rhe8 {[%emt 0:06:30]} 15. Ba5 {[%emt 0:06:30]} b6 {[%emt 0:01:30]} 16. Bb4 {[%emt 0:00:30]} c5 {[%emt 0:02:30]} 17. Rac1 {[%emt 0:01:30]} Kb7 {[%emt 0:01:30]} 18. Ba3 {[%emt 0:03:30]} h6 {[%emt 0:08:30]} 19. Ba4 {[%emt 0:01:30]} Rg8 {[%emt 0:09:40]} 20. Bxd7 {[%emt 0:04:30]} Rxd7 {[%emt 0:00:58]} 21. dxc5 {[%emt 0:00:00]} bxc5 {[%emt 0:01:45]} 22. Bxc5 {[%emt 0:00:00]} Nd2 {[%emt 0:06:17]} 23. Nxd2 {[%emt 0:04:30]} Rxd2 {[%emt 0:00:14]} 24. Bd4 {[%emt 0:00:30]} f6 {[%emt 0:00:45]} 25. Rfd1 {[%emt 0:02:30]} Rxd1+ {[%emt 0:01:11]} 26. Rxd1 {[%emt 0:00:30]} Rd8 {[%emt 0:00:55]} 27. Rc1 {[%emt 0:00:30]} e5 {[%emt 0:00:51]} 28. Bc3 {[%emt 0:00:00]} Be6 {[%emt 0:02:13]} 29. a3 {[%emt 0:00:00]} g6 {[%emt 0:00:19]} 30. h3 {[%emt 0:01:30]} a6 {[%emt 0:00:48]} 31. Bb4 {[%emt 0:01:30]} f5 {[%emt 0:01:12]} 32. Bc3 {[%emt 0:03:30]} e4 {[%emt 0:00:34]} 33. Bd4 {[%emt 0:01:30]} Rd7 {[%emt 0:02:08]} 34. Rc3 {[%emt 0:02:30]} Rc7 {[%emt 0:01:28]} 35. Rxc7+ {[%emt 0:00:30]} Kxc7 {[%emt 0:00:10]} 36. Kh2 {[%emt 0:00:30]} Bc4 {[%emt 0:00:59]} 37. g4 {[%emt 0:03:30]} fxg4 {[%emt 0:00:45]} 38. hxg4 {[%emt 0:00:30]} Be2 {[%emt 0:00:18]} 39. Kg3 {[%emt 0:00:00]} h5 {[%emt 0:00:26]} 40. gxh5 {[%emt 0:01:00]} gxh5 {[%emt 0:00:10]} 41. Kh4 {[%emt 0:00:30]} Bf3 {[%emt 0:01:14]} 42. Kg5 {[%emt 0:00:30]} Kc6 {[%emt 0:00:22]} 43. Bf6 {[%emt 0:00:30]} Kd5 {[%emt 0:00:40]} 44. Kf4 {[%emt 0:02:30]} Be2 {[%emt 0:00:28]} 45. Kg5 {[%emt 0:02:30]} Bf3 {[%emt 0:00:39]} 46. Kf4 {[%emt 0:00:30]} Be2 {[%emt 0:00:00]} 47. Be7 {[%emt 0:05:30]} Bf3 {[%emt 0:00:21]} 48. Kf5 {[%emt 0:03:30]} Bg4+ {[%emt 0:00:34]} 49. Kf4 {[%emt 0:00:30]} Bf3 {[%emt 0:00:24]} 50. Bf6 {[%emt 0:07:01]} Be2 {[%emt 0:00:22]} 51. Bg7 {[%emt 0:00:23]} 1/2-1/2

[Event "Turkish Women-ch Arzum 2022"]
[Site "Ayvalik"]
[Date "2022.03.08"]
[Round "5.23"]
[White "Turunz, Dilek"]
[Black "Dal, Nurseda"]
[Result "0-1"]
[ECO "C56"]
[WhiteElo "1443"]
[BlackElo "1116"]
[Annotator "NA RC"]
[PlyCount "86"]
[EventDate "2022.03.04"]
[EventType "swiss"]
[EventCountry "TUR"]
[SourceTitle "playchess.com"]
[Source "ChessBase"]
[SourceQuality "1"]
[TimeControl "5400+30"]

1. e4 {[%emt 0:01:00]} e5 {[%emt 0:01:00]} 2. Nf3 {[%emt 0:00:30]} Nc6 {[%emt 0:00:30]} 3. d4 {[%emt 0:00:30]} exd4 {[%emt 0:00:30]} 4. Bc4 {[%emt 0:00:00]} Nf6 {[%emt 0:00:00]} 5. e5 {[%emt 0:00:00]} d5 {[%emt 0:00:00]} 6. Bb5 {[%emt 0:00:30]} Ne4 {[%emt 0:00:00]} 7. Nxd4 {[%emt 0:00:00]} Bd7 {[%emt 0:00:00]} 8. Bxc6 {[%emt 0:00:00]} bxc6 {[%emt 0:00:00]} 9. O-O {[%emt 0:00:30]} Bc5 {[%emt 0:00:00]} 10. f3 {[%emt 0:00:00]} Ng5 {[%emt 0:00:30]} 11. f4 {[%emt 0:00:00]} Ne4 {[%emt 0:00:00]} 12. Be3 {[%emt 0:01:30]} Bb6 {[%emt 0:00:00]} 13. Qf3 {[%emt 0:04:30]} O-O {[%emt 0:10:30]} 14. Nb3 {[%emt 0:19:30]} Bg4 {[%emt 0:03:30]} 15. Qxg4 {[%emt 0:04:30]} Bxe3+ {[%emt 0:00:30]} 16. Kh1 {[%emt 0:00:30]} Nf2+ {[%emt 0:00:30]} 17. Rxf2 {[%emt 0:00:30]} Bxf2 {[%emt 0:00:00]} 18. N1d2 {[%emt 0:02:30]} Qh4 {[%emt 0:06:00]} 19. Qf3 {[%emt 0:00:30]} Bb6 {[%emt 0:01:30]} 20. Rf1 {[%emt 0:03:30]} Rae8 {[%emt 0:01:30]} 21. a4 {[%emt 0:01:30]} a5 {[%emt 0:04:30]} 22. Qc3 {[%emt 0:01:30]} Re6 {[%emt 0:03:30]} 23. f5 {[%emt 0:04:30]} Rh6 {[%emt 0:00:30]} 24. h3 {[%emt 0:00:30]} Qxa4 {[%emt 0:10:30]} 25. f6 {[%emt 0:02:30]} gxf6 {[%emt 0:02:30]} 26. exf6 {[%emt 0:04:30]} Rg6 {[%emt 0:01:30]} 27. g3 {[%emt 0:08:30]} Kh8 {[%emt 0:01:30]} 28. Rf4 {[%emt 0:01:30]} Qb5 {[%emt 0:07:30]} 29. Qf3 {[%emt 0:06:30]} a4 {[%emt 0:03:30]} 30. Nd4 {[%emt 0:18:10]} Bxd4 {[%emt 0:00:30]} 31. Rxd4 {[%emt 0:00:02]} Qxb2 {[%emt 0:00:30]} 32. Rxa4 {[%emt 0:02:58]} Qxc2 {[%emt 0:00:30]} 33. Rd4 {[%emt 0:00:11]} Qc1+ {[%emt 0:03:30]} 34. Kg2 {[%emt 0:02:16]} Qe1 {[%emt 0:00:30]} 35. h4 {[%emt 0:02:04]} Rfg8 {[%emt 0:01:30]} 36. Nf1 {[%emt 0:00:13]} Qe6 {[%emt 0:01:30]} 37. Rf4 {[%emt 0:00:12]} Rg4 {[%emt 0:00:30]} 38. Ne3 {[%emt 0:02:17]} Rxg3+ {[%emt 0:00:30]} 39. Qxg3 {[%emt 0:00:00]} Rxg3+ {[%emt 0:00:30]} 40. Kxg3 {[%emt 0:00:29]} Qxe3+ {[%emt 0:00:30]} 41. Rf3 {[%emt 0:00:00]} Qe5+ {[%emt 0:00:00]} 42. Kf2 {[%emt 0:00:00]} Qh2+ {[%emt 0:00:00]} 43. Ke3 {[%emt 0:00:00]} Qxh4 {[%emt 0:00:30]} 0-1

[Event "Turkish Women-ch Arzum 2022"]
[Site "Ayvalik"]
[Date "2022.03.08"]
[Round "5.24"]
[White "Bassari, Senem Gul"]
[Black "Ozer, Melike Busra"]
[Result "0-1"]
[ECO "C02"]
[WhiteElo "1197"]
[BlackElo "1300"]
[Annotator "NA RC"]
[PlyCount "178"]
[EventDate "2022.03.04"]
[EventType "swiss"]
[EventCountry "TUR"]
[SourceTitle "playchess.com"]
[Source "ChessBase"]
[SourceQuality "1"]
[TimeControl "5400+30"]

1. e4 {[%emt 0:01:00]} c5 {[%emt 0:01:00]} 2. c3 {[%emt 0:00:00]} e6 {[%emt 0:00:30]} 3. d4 {[%emt 0:01:00]} cxd4 {[%emt 0:00:30]} 4. cxd4 {[%emt 0:00:30]} d5 {[%emt 0:00:00]} 5. e5 {[%emt 0:00:00]} Nc6 {[%emt 0:00:00]} 6. Nf3 {[%emt 0:00:00]} Nge7 {[%emt 0:02:30]} 7. Na3 {[%emt 0:01:30]} Nf5 {[%emt 0:02:30]} 8. Nc2 {[%emt 0:01:30]} Qb6 {[%emt 0:03:30]} 9. Bd3 {[%emt 0:01:30]} Bb4+ {[%emt 0:03:30]} 10. Nxb4 {[%emt 0:11:30]} Qxb4+ {[%emt 0:00:30]} 11. Bd2 {[%emt 0:08:30]} Qxb2 {[%emt 0:02:30]} 12. O-O {[%emt 0:04:30]} Nfxd4 {[%emt 0:01:30]} 13. Nxd4 {[%emt 0:04:30]} Qxd4 {[%emt 0:00:30]} 14. Be3 {[%emt 0:09:30]} Qxe5 {[%emt 0:04:30]} 15. Qg4 {[%emt 0:03:30]} O-O {[%emt 0:03:30]} 16. Rac1 {[%emt 0:04:30]} f5 {[%emt 0:08:30]} 17. Qh4 {[%emt 0:08:30]} Qf6 {[%emt 0:01:30]} 18. Qa4 {[%emt 0:09:30]} d4 {[%emt 0:03:30]} 19. Bd2 {[%emt 0:01:30]} e5 {[%emt 0:00:30]} 20. Qb3+ {[%emt 0:03:30]} Kh8 {[%emt 0:01:30]} 21. f3 {[%emt 0:03:30]} Rb8 {[%emt 0:05:30]} 22. Bc4 {[%emt 0:09:18]} Bd7 {[%emt 0:02:30]} 23. Rce1 {[%emt 0:05:37]} Rfe8 {[%emt 0:07:30]} 24. Bd3 {[%emt 0:03:57]} Be6 {[%emt 0:03:30]} 25. Qb1 {[%emt 0:01:00]} Qf7 {[%emt 0:01:30]} 26. a3 {[%emt 0:00:43]} Rbc8 {[%emt 0:01:30]} 27. Rc1 {[%emt 0:01:02]} Rc7 {[%emt 0:04:30]} 28. Rc2 {[%emt 0:01:17]} Rec8 {[%emt 0:01:30]} 29. Rfc1 {[%emt 0:00:09]} Bd5 {[%emt 0:05:30]} 30. Rb2 {[%emt 0:01:02]} g6 {[%emt 0:02:30]} 31. Re1 {[%emt 0:00:34]} Qe7 {[%emt 0:04:30]} 32. Bf4 {[%emt 0:01:10]} Qxa3 {[%emt 0:02:30]} 33. Bg3 {[%emt 0:00:30]} Qe7 {[%emt 0:01:30]} 34. Rbe2 {[%emt 0:00:34]} f4 {[%emt 0:02:29]} 35. Bf2 {[%emt 0:00:22]} Qa3 {[%emt 0:02:41]} 36. Rb2 {[%emt 0:00:34]} Na5 {[%emt 0:01:40]} 37. Rbe2 {[%emt 0:00:39]} Rc1 {[%emt 0:03:53]} 38. Qb5 {[%emt 0:00:17]} R1c5 {[%emt 0:01:51]} 39. Qb1 {[%emt 0:00:18]} Bc4 {[%emt 0:01:32]} 40. Bxc4 {[%emt 0:00:51]} Nxc4 {[%emt 0:00:05]} 41. Qxb7 {[%emt 0:00:05]} R5c7 {[%emt 0:02:06]} 42. Qd5 {[%emt 0:00:33]} d3 {[%emt 0:01:38]} 43. Bh4 {[%emt 0:00:49]} Qd6 {[%emt 0:01:39]} 44. Qxd6 {[%emt 0:00:45]} Nxd6 {[%emt 0:00:02]} 45. Rd2 {[%emt 0:00:12]} Rc1 {[%emt 0:02:56]} 46. Rxd3 {[%emt 0:00:00]} Rxe1+ {[%emt 0:00:12]} 47. Bxe1 {[%emt 0:00:00]} Rc1 {[%emt 0:00:30]} 48. Kf2 {[%emt 0:00:00]} Nc4 {[%emt 0:00:30]} 49. Rd8+ {[%emt 0:00:04]} Kg7 {[%emt 0:00:30]} 50. Rc8 {[%emt 0:00:30]} Rc2+ {[%emt 0:00:30]} 51. Kg1 {[%emt 0:00:30]} Ne3 {[%emt 0:00:30]} 52. Rxc2 {[%emt 0:00:30]} Nxc2 {[%emt 0:00:30]} 53. Bc3 {[%emt 0:00:30]} Nd4 {[%emt 0:00:30]} 54. Kf2 {[%emt 0:00:30]} Kf6 {[%emt 0:00:30]} 55. Ke1 {[%emt 0:00:30]} Ke6 {[%emt 0:00:30]} 56. Kd2 {[%emt 0:00:30]} Kd5 {[%emt 0:00:30]} 57. Kd3 {[%emt 0:00:30]} a6 {[%emt 0:00:30]} 58. Bb4 {[%emt 0:00:30]} Nf5 {[%emt 0:00:30]} 59. Be1 {[%emt 0:00:30]} g5 {[%emt 0:01:10]} 60. g4 {[%emt 0:02:05]} fxg3 {[%emt 0:00:56]} 61. hxg3 {[%emt 0:00:11]} Nd4 {[%emt 0:00:00]} 62. f4 {[%emt 0:00:33]} gxf4 {[%emt 0:00:10]} 63. gxf4 {[%emt 0:00:31]} exf4 {[%emt 0:00:06]} 64. Bd2 {[%emt 0:00:02]} f3 {[%emt 0:00:50]} 65. Ke3 {[%emt 0:00:12]} Kc4 {[%emt 0:00:04]} 66. Ba5 {[%emt 0:01:10]} Nb3 {[%emt 0:01:14]} 67. Bd8 {[%emt 0:00:42]} a5 {[%emt 0:02:24]} 68. Bxa5 {[%emt 0:00:20]} Nxa5 {[%emt 0:00:12]} 69. Kxf3 {[%emt 0:00:06]} Nc6 {[%emt 0:00:24]} 70. Kf4 {[%emt 0:00:30]} Ne7 {[%emt 0:00:00]} 71. Kg5 {[%emt 0:00:11]} Ng8 {[%emt 0:00:00]} 72. Kf5 {[%emt 0:00:18]} Kd5 {[%emt 0:00:00]} 73. Kg5 {[%emt 0:00:30]} Ke5 {[%emt 0:00:15]} 74. Kh5 {[%emt 0:00:10]} Kf5 {[%emt 0:00:30]} 75. Kh4 {[%emt 0:00:00]} Nf6 {[%emt 0:00:11]} 76. Kg3 {[%emt 0:00:18]} Kg5 {[%emt 0:00:00]} 77. Kf3 {[%emt 0:00:00]} Nd5 {[%emt 0:01:24]} 78. Kg3 {[%emt 0:00:15]} h6 {[%emt 0:01:37]} 79. Kh3 {[%emt 0:00:21]} Nf4+ {[%emt 0:00:43]} 80. Kg3 {[%emt 0:00:15]} Ne2+ {[%emt 0:00:43]} 81. Kh3 {[%emt 0:00:33]} h5 {[%emt 0:00:32]} 82. Kg2 {[%emt 0:00:31]} Kg4 {[%emt 0:00:17]} 83. Kh2 {[%emt 0:00:17]} h4 {[%emt 0:01:39]} 84. Kg2 {[%emt 0:00:08]} Nd4 {[%emt 0:00:20]} 85. Kh2 {[%emt 0:00:17]} Nf5 {[%emt 0:00:32]} 86. Kg2 {[%emt 0:00:39]} Ne3+ {[%emt 0:00:06]} 87. Kh2 {[%emt 0:01:40]} h3 {[%emt 0:00:23]} 88. Kg1 {[%emt 0:00:29]} Kg3 {[%emt 0:00:44]} 89. Kh1 {[%emt 0:00:30]} Nd1 {[%emt 0:00:00]} 0-1

[Event "Turkish Women-ch Arzum 2022"]
[Site "Ayvalik"]
[Date "2022.03.08"]
[Round "5.25"]
[White "Sahin, Cagla Yudum"]
[Black "Gedik, Eylul Ceren"]
[Result "1/2-1/2"]
[ECO "B23"]
[WhiteElo "1162"]
[BlackElo "1282"]
[Annotator "NA"]
[PlyCount "145"]
[EventDate "2022.03.04"]
[EventType "swiss"]
[EventCountry "TUR"]
[SourceTitle "playchess.com"]
[Source "ChessBase"]
[SourceQuality "1"]
[TimeControl "5400+30"]

1. e4 {[%emt 0:01:00]} c5 {[%emt 0:03:00]} 2. Nc3 {[%emt 0:00:00]} Nc6 {[%emt 0:00:30]} 3. Bb5 {[%emt 0:00:00]} Nd4 {[%emt 0:00:30]} 4. Nf3 {[%emt 0:00:30]} a6 {[%emt 0:01:30]} 5. Bd3 {[%emt 0:00:00]} b5 {[%emt 0:09:30]} 6. Nxd4 {[%emt 0:02:00]} cxd4 {[%emt 0:00:30]} 7. Ne2 {[%emt 0:00:00]} e5 {[%emt 0:02:30]} 8. c3 {[%emt 0:01:00]} dxc3 {[%emt 0:04:30]} 9. dxc3 {[%emt 0:00:30]} Bb7 {[%emt 0:13:30]} 10. O-O {[%emt 0:01:30]} d5 {[%emt 0:07:30]} 11. Ng3 {[%emt 0:03:30]} Bc5 {[%emt 0:08:30]} 12. Qg4 {[%emt 0:04:30]} g6 {[%emt 0:05:30]} 13. Rd1 {[%emt 0:19:30]} Qb6 {[%emt 0:07:30]} 14. Qe2 {[%emt 0:03:30]} d4 {[%emt 0:04:30]} 15. c4 {[%emt 0:05:30]} b4 {[%emt 0:01:30]} 16. Qg4 {[%emt 0:06:30]} Nf6 {[%emt 0:05:30]} 17. Qg5 {[%emt 0:02:30]} Nd7 {[%emt 0:00:30]} 18. Qh6 {[%emt 0:01:30]} Bf8 {[%emt 0:00:30]} 19. Qh4 {[%emt 0:03:30]} Nc5 {[%emt 0:02:30]} 20. Bh6 {[%emt 0:05:30]} Be7 {[%emt 0:00:42]} 21. Qg4 {[%emt 0:01:30]} f6 {[%emt 0:06:32]} 22. h4 {[%emt 0:04:30]} Qc6 {[%emt 0:04:10]} 23. Qf3 {[%emt 0:06:30]} Rg8 {[%emt 0:02:24]} 24. Bd2 {[%emt 0:02:30]} f5 {[%emt 0:01:38]} 25. Re1 {[%emt 0:00:30]} Nxd3 {[%emt 0:02:10]} 26. Qxd3 {[%emt 0:00:00]} f4 {[%emt 0:00:00]} 27. Ne2 {[%emt 0:01:00]} a5 {[%emt 0:01:18]} 28. a3 {[%emt 0:01:30]} bxa3 {[%emt 0:02:32]} 29. bxa3 {[%emt 0:00:00]} Bxh4 {[%emt 0:00:29]} 30. Rab1 {[%emt 0:00:00]} Ba6 {[%emt 0:00:33]} 31. Qh3 {[%emt 0:02:30]} Bf6 {[%emt 0:01:17]} 32. Qxh7 {[%emt 0:01:30]} Rg7 {[%emt 0:00:11]} 33. Rb6 {[%emt 0:04:51]} Qxb6 {[%emt 0:01:40]} 34. Qh8+ {[%emt 0:00:28]} Kf7 {[%emt 0:00:40]} 35. Qxa8 {[%emt 0:00:13]} Bxc4 {[%emt 0:00:59]} 36. Qc8 {[%emt 0:00:49]} Be6 {[%emt 0:00:33]} 37. Qc2 {[%emt 0:00:46]} Bh4 {[%emt 0:00:32]} 38. Qd3 {[%emt 0:01:52]} Kf6 {[%emt 0:00:30]} 39. Rb1 {[%emt 0:00:43]} Qc6 {[%emt 0:00:19]} 40. Rc1 {[%emt 0:00:45]} Qa4 {[%emt 0:00:28]} 41. g3 {[%emt 0:01:48]} Bg5 {[%emt 0:00:46]} 42. gxf4 {[%emt 0:00:51]} exf4 {[%emt 0:00:14]} 43. Nxf4 {[%emt 0:00:37]} Bxf4 {[%emt 0:00:36]} 44. Bxf4 {[%emt 0:00:11]} Rd7 {[%emt 0:00:37]} 45. Qf3 {[%emt 0:00:51]} Qb3 {[%emt 0:00:32]} 46. Qg2 {[%emt 0:01:12]} Qxa3 {[%emt 0:00:33]} 47. Qg5+ {[%emt 0:00:30]} Kf7 {[%emt 0:00:07]} 48. Be5 {[%emt 0:00:51]} Qe7 {[%emt 0:00:01]} 49. Qh6 {[%emt 0:00:18]} Qf8 {[%emt 0:00:44]} 50. Qh7+ {[%emt 0:00:53]} Ke8 {[%emt 0:00:02]} 51. Qxg6+ {[%emt 0:01:24]} Qf7 {[%emt 0:00:00]} 52. Rc8+ {[%emt 0:00:44]} Rd8 {[%emt 0:00:11]} 53. Rxd8+ {[%emt 0:01:58]} Kxd8 {[%emt 0:00:01]} 54. Qxf7 {[%emt 0:00:28]} Bxf7 {[%emt 0:00:30]} 55. Bxd4 {[%emt 0:00:00]} Kd7 {[%emt 0:00:00]} 56. f4 {[%emt 0:00:25]} a4 {[%emt 0:00:05]} 57. Bb2 {[%emt 0:00:31]} Kd6 {[%emt 0:00:54]} 58. Ba3+ {[%emt 0:00:19]} Ke6 {[%emt 0:00:10]} 59. Kf2 {[%emt 0:00:12]} Be8 {[%emt 0:00:16]} 60. Ke3 {[%emt 0:00:30]} Bb5 {[%emt 0:00:00]} 61. Kd4 {[%emt 0:00:09]} Bc6 {[%emt 0:00:00]} 62. f5+ {[%emt 0:01:48]} Kf6 {[%emt 0:00:28]} 63. Ke3 {[%emt 0:00:00]} Bd7 {[%emt 0:00:07]} 64. Kf4 {[%emt 0:00:03]} Bc8 {[%emt 0:00:00]} 65. e5+ {[%emt 0:00:48]} Kf7 {[%emt 0:00:03]} 66. Kg5 {[%emt 0:00:52]} Bd7 {[%emt 0:00:02]} 67. f6 {[%emt 0:02:51]} Be6 {[%emt 0:00:59]} 68. Kf4 {[%emt 0:00:36]} Bd5 {[%emt 0:00:00]} 69. Kf5 {[%emt 0:00:52]} Be6+ {[%emt 0:00:18]} 70. Ke4 {[%emt 0:00:30]} Bb3 {[%emt 0:00:00]} 71. Kd4 {[%emt 0:00:00]} Be6 {[%emt 0:00:00]} 72. Kc5 {[%emt 0:00:48]} Ba2 {[%emt 0:00:00]} 73. Kd4 {[%emt 0:00:51]} 1/2-1/2